Cogmind - Beta 12 @@@ ROGUE MODE // 2023.11.26 @ 20:16:04 Player: ArgenwarriorDestroyeforPeron Result: Destroyed by YI-UF0 with YI-UF0's Doublenader Performance ------------- Evolutions (1) 500 Regions Visited (4) 800 Robots Destroyed (26) 130 Value Destroyed (607) 607 Prototype IDs (3) 60 Alien Tech Used (0) 0 Bonus (83) 83 TOTAL SCORE: 2180 Bonus ------- Follower Combat Kills 83 Cogmind --------- Core Integrity 0/400 Matter 290/400 Energy 265/265 System Corruption 14% Temperature Cool (0) Movement Walking (190) Ox1 Location -9/Mines Parts ------- > --- POWER (2) -------- Reinforced Ion Engine > --- PROPULSION (2) --- Aluminum Leg Aluminum Leg > --- UTILITY (3) ------ Large Storage Unit Medium Matter Pod Seismic Detector > --- WEAPON (2) ------- Small Laser Beam Rifle > --- INVENTORY (15) --- Ion Engine Ion Engine Small Battery (100) ECM Suite Peak State ------------ > --- POWER ------------ Ion Engine Ion Engine > --- PROPULSION ------- Aluminum Leg Improved Aluminum Leg > --- UTILITY ---------- Large Storage Unit Medium Matter Pod Targeting Computer > --- WEAPON ----------- Small Laser Improved Assault Rifle > --- INVENTORY -------- Light Ion Engine Aluminum Leg Small Battery Seismic Detector ECM Suite Small Laser Grenade Launcher Mining Laser [Rating: 12] Favorites ----------- Power Ion Engine Engine Ion Engine Propulsion Aluminum Leg Leg Aluminum Leg Wheel Wheel Hover Unit Hover Unit Flight Unit Flight Unit Utility Targeting Computer Device Seismic Detector Storage Small Battery Processor Targeting Computer Weapon Improved Assault Rifle Energy Gun Small Laser Energy Cannon Light EM Pulse Cannon Ballistic Gun Improved Assault Rifle Launcher Grenade Launcher Special Weapon Mining Laser Build | -11 -10 -10 -9 -9 ------- Run | Jun Mat Min Mat Min Slots Evolved 2 | . . . 2 . Power 1 | . . . 1 . Propulsion . | . . . . . Utility 1 | . . . 1 . Weapon . | . . . . . Parts Attached 39 | 8 13 1 9 8 Power 8 | 2 1 1 3 1 Engine 8 | 2 1 1 3 1 Core . | . . . . . Reactor . | . . . . . Propulsion 11 | 2 5 . 2 2 Treads . | . . . . . Leg 6 | . 2 . 2 2 Wheel 3 | 2 1 . . . Hover 1 | . 1 . . . Flight 1 | . 1 . . . Utility 7 | . 3 . 3 1 Device 3 | . 1 . 1 1 Storage 3 | . 1 . 2 . Processor 1 | . 1 . . . Hackware . | . . . . . Protection . | . . . . . Artifact . | . . . . . Weapon 13 | 4 4 . 1 4 Energy Gun 4 | 1 . . 1 2 Energy Cannon 1 | . 1 . . . Ballistic Gun 5 | 3 2 . . . Ballistic Cannon . | . . . . . Launcher 2 | . 1 . . 1 Special Weapon 1 | . . . . 1 Impact Weapon . | . . . . . Slashing Weapon . | . . . . . Piercing Weapon . | . . . . . Special Melee Weapon . | . . . . . Unidentified Prototypes 1 | . 1 . . . Parts Lost 13 | . 4 . 1 8 Power 3 | . 1 . 1 1 Propulsion 4 | . 2 . . 2 Utility 1 | . . . . 1 Weapon 5 | . 1 . . 4 Highest Loss Streak 7 | . 2 . 1 7 To Critical Strikes . | . . . . . Average Slot Usage (%) 84 | . 80 100 96 73 Engine 14 | . 13 14 20 12 Leg 15 | . 8 28 22 17 Wheel 4 | . 8 . . . Hover 2 | . 4 . . . Device 2 | . 1 . 4 4 Storage 12 | . 6 14 16 22 Processor 7 | . 7 14 11 . Energy Gun 4 | . 1 . 5 15 Energy Cannon 1 | . 3 . . . Ballistic Gun 11 | . 14 14 11 . Launcher 7 | . 8 14 5 . Naked Turns . | . . . . . Heaviest Build 38 | 8 12 12 38 37 Greatest Support 23 | 20 20 20 23 23 Greatest Overweight (x) 3 | . 2 . 1 3 Average Overweight (x) . | . . . . 1 Largest Inventory Capacity 15 | 5 5 5 15 15 Average Capacity 7 | 5 5 5 11 15 Most Carried 8 | 5 5 5 8 8 Average Carried 4 | 2 4 4 5 5 Final Capacity 15 | 5 5 5 15 15 Final Carried 7 | 5 4 5 7 4 Class Distribution -------------------- 93% | Mutant 6% | Scavenger-Mutant Dominant Class ---------------- Mutant | -10/Materials Mutant | -10/Mines Mutant | -9/Materials Mutant | -9/Mines Resources | -11 -10 -10 -9 -9 ----------- Run | Jun Mat Min Mat Min Matter Collected 1021 | 286 321 . 251 163 Remotely . | . . . . . Salvage Created 753 | 58 487 . 162 46 Parts 46 | 4 31 . 9 2 Haulers Intercepted . | . . . . . Recyclers Shooed . | . . . . . Parts Field Recycled . | . . . . . Retrieved Matter . | . . . . . Parts Self-Destructed . | . . . . . Prevented . | . . . . . Kills | -11 -10 -10 -9 -9 ------- Run | Jun Mat Min Mat Min Combat Hostiles Destroyed 20 | 1 13 . 4 2 Guns 15 | 1 9 . 3 2 Cannons 2 | . 2 . . . AOE 3 | . 2 . 1 . Classes Destroyed 7 | 2 4 . 1 . Worker 2 | 1 1 . . . Builder 2 | . 2 . . . Recycler 1 | . 1 . . . Watcher 1 | . 1 . . . Swarmer 6 | . 6 . . . Grunt 12 | 1 7 . 3 1 Brawler 2 | . . . 1 1 Best Kill Streak 6 | 2 6 . 3 2 Combat Bots Only 5 | 1 5 . 3 2 Max Kills in Single Turn 4 | 1 4 . 1 1 Gunslinging . | . . . . . Exploded 1 | . 1 . 1 . Melee . | . . . . . Uniques/NPCs Destroyed . | . . . . . Combat | -11 -10 -10 -9 -9 -------- Run | Jun Mat Min Mat Min Damage Taken 1747 | . 569 . 135 1043 Core 512 | . 109 . 11 392 Absorbed by Shields . | . . . . . Core Remaining (%) 78 | 100 . 56 . . Volleys Fired 76 | 2 46 . 8 20 Largest 2 | 2 2 . 2 2 Hottest 156 | 60 79 . 63 156 Shots Fired 116 | 4 69 . 16 27 Gun 86 | 4 45 . 15 22 Cannon 18 | . 18 . . . Launcher 7 | . 6 . 1 . Special 5 | . . . . 5 Kinetic 55 | 2 44 . 8 1 Thermal 36 | 2 1 . 7 26 Explosive 7 | . 6 . 1 . Electromagnetic 18 | . 18 . . . Robot Hit Streak 18 | 3 15 . 10 18 Robot Miss Streak 7 | . 7 . 1 2 Penetration Max . | . . . . . Secondary Targets . | . . . . . Shots Hit Robots 81 | 3 42 . 14 22 Core Hits 39 | 3 24 . 8 4 Critical Kills . | . . . . . Critical Parts Destroyed . | . . . . . Critical Strikes . | . . . . . Melee Attacks . | . . . . . Impact . | . . . . . Slashing . | . . . . . Piercing . | . . . . . Sneak Attacks . | . . . . . Combat Hostiles . | . . . . . Follow-up Attacks . | . . . . . Damage Inflicted 1618 | 34 1053 . 209 322 Guns 907 | 34 475 . 172 226 Cannons 181 | . 181 . . . Explosions 434 | . 397 . 37 . Melee . | . . . . . Ramming . | . . . . . Kinetic 605 | 12 475 . 105 13 Thermal 398 | 22 . . 67 309 Explosive 434 | . 397 . 37 . Electromagnetic 181 | . 181 . . . Impact . | . . . . . Slashing . | . . . . . Piercing . | . . . . . Highest Corruption 14 | . 5 5 3 14 Average Corruption 6 | . 4 5 3 13 Corruption Purged . | . . . . . Corruption Blocked . | . . . . . Effects 31 | . 14 5 2 10 Message Errors 4 | . 2 . 1 1 Matter Fused 9 | . 4 2 . 3 Heat Flow Errors 2 | . 1 . . 1 Energy Discharges 5 | . 2 1 1 1 Data Loss (minor) 8 | . 4 2 . 2 Misfires 1 | . . . . 1 Alerts 1 | . . . . 1 Weapon Failures 1 | . 1 . . . Overload Shots . | . . . . . Overflow Damage 20 | . 20 . . . Projectiles . | . . . . . Explosions 20 | . 20 . . . Melee . | . . . . . Knockbacks . | . . . . . Impact . | . . . . . Kinetic . | . . . . . Secondary . | . . . . . Self-Inflicted Damage 25 | . 25 . . . Shots 2 | . 2 . . . Rammed . | . . . . . Targets Rammed . | . . . . . Kicked . | . . . . . Crushed . | . . . . . Highest Temperature 634 | . 180 . 60 634 Average Temperature 154 | . 66 . 34 273 Received Heat Transfer 351 | . 123 . 36 192 Effects 17 | . . . . 17 Shutdowns 4 | . . . . 4 Energy Bleed 5 | . . . . 5 Interference 1 | . . . . 1 Matter Decay 3 | . . . . 3 Damage (minor) 1 | . . . . 1 Damage (core) 3 | . . . . 3 Siege Activations . | . . . . . Robots Corrupted . | . . . . . Combat Hostiles . | . . . . . Parts Fried 1 | . 1 . . . Impact Corruptions . | . . . . . Robots Melted . | . . . . . Combat Hostiles . | . . . . . Parts Melted 2 | . . . . 2 Heat Transferred 933 | 50 . . 150 733 Parts Sabotaged . | . . . . . Parts Stolen . | . . . . . Parts Stripped . | . . . . . Power Chain Reactions . | . . . . . Missiles Intercepted . | . . . . . Alert | -11 -10 -10 -9 -9 ------- Run | Jun Mat Min Mat Min Peak Influence 297 | 25 297 77 220 85 Initial 85 | . 16 77 29 85 Average 106 | 3 135 77 130 60 Maximum Alert Level 1 | . 1 . 1 . Low Security (%) 84 | 100 73 100 84 100 Level 1 15 | . 26 . 15 . Level 2 . | . . . . . Level 3 . | . . . . . Level 4 . | . . . . . Level 5 . | . . . . . High Security . | . . . . . Max Security . | . . . . . Squads Dispatched 6 | . 4 . 2 . Investigation 2 | . 1 . 1 . Extermination . | . . . . . Reinforcement 4 | . 3 . 1 . Assault . | . . . . . Garrison . | . . . . . Intercept . | . . . . . Searches Triggered . | . . . . . Construction Impeded . | . . . . . Haulers Reinforced . | . . . . . Active Scanning Responses . | . . . . . Cargo Convoy Interrupts . | . . . . . Stealth | -11 -10 -10 -9 -9 --------- Run | Jun Mat Min Mat Min Distress Signals . | . . . . . Communications Jammed . | . . . . . Distress Signals . | . . . . . Times Spotted 32 | 1 19 . 8 4 Peak Tracking Total 7 | 1 7 . 3 3 Tactical Retreats . | . . . . . Traps | -11 -10 -10 -9 -9 ------- Run | Jun Mat Min Mat Min Traps Triggered 4 | . 3 . 1 . Indirectly . | . . . . . Trap Hack Attempts . | . . . . . Triggered . | . . . . . Disarmed . | . . . . . Reprogrammed . | . . . . . Reused . | . . . . . Traps Extracted . | . . . . . Installed . | . . . . . Triggered . | . . . . . Machines | -11 -10 -10 -9 -9 ---------- Run | Jun Mat Min Mat Min Machines Disabled 2 | . 1 . 1 . Max in Single Turn 1 | . 1 . . . Machines Repaired . | . . . . . Machines Sabotaged . | . . . . . Overloaded Fab Kills . | . . . . . Hacking | -11 -10 -10 -9 -9 --------- Run | Jun Mat Min Mat Min Machines Accessed 3 | . 2 . 1 . Terminals 2 | . 1 . 1 . Fabricators . | . . . . . Repair Stations . | . . . . . Recycling Units 1 | . 1 . . . Scanalyzers . | . . . . . Garrison Access . | . . . . . Total Hacks 13 | . 10 . 3 . Successful 11 | . 8 . 3 . Failed 2 | . 2 . . . Catastrophic . | . . . . . Database Lockouts . | . . . . . Manual 1 | . 1 . . . Terminals 8 | . 5 . 3 . Fabricators . | . . . . . Repair Stations . | . . . . . Recycling Units 5 | . 5 . . . Scanalyzers . | . . . . . Garrison Access . | . . . . . Terminal Hacks 7 | . 4 . 3 . Record 3 | . . . 3 . Prototype ID Bank 1 | . 1 . . . Alert Level 2 | . 2 . . . Hauler Manifests 1 | . 1 . . . Fabricator Hacks . | . . . . . Repair Station Hacks . | . . . . . Recycling Unit Hacks 4 | . 4 . . . Recycle Component 1 | . 1 . . . Process 2 | . 2 . . . Report Inventory 1 | . 1 . . . Scanalyzer . | . . . . . Garrison Access Hacks . | . . . . . Unauthorized Hacks . | . . . . . Terminals . | . . . . . Fabricators . | . . . . . Repair Stations . | . . . . . Recycling Units . | . . . . . Scanalyzers . | . . . . . Garrison Access . | . . . . . Data Cores Recovered . | . . . . . Used . | . . . . . Hacking Detections 3 | . 2 . 1 . Full Trace Events 1 | . 1 . . . Feedback Events . | . . . . . Feedback Blocked . | . . . . . Robot Schematics Acquired . | . . . . . Robots Built . | . . . . . Authchips . | . . . . . Time . | . . . . . Total Robot Build Rating . | . . . . . Part Schematics Acquired . | . . . . . Parts Built . | . . . . . Authchips . | . . . . . Time . | . . . . . Total Part Build Rating . | . . . . . Parts Repaired . | . . . . . Time . | . . . . . Parts Recycled 1 | . 1 . . . Recycled Matter 9 | . 9 . . . Retrieved Matter . | . . . . . Retrieved Components . | . . . . . Parts Scanalyzed . | . . . . . Part Schematics Acquired . | . . . . . Parts Damaged . | . . . . . Bothacking | -11 -10 -10 -9 -9 ------------ Run | Jun Mat Min Mat Min Used RIF Installer . | . . . . . Robots Hacked . | . . . . . Non-combat . | . . . . . Combat . | . . . . . Robot Hacks Applied . | . . . . . Relay Couplers Released . | . . . . . Fabnet Peak Effective % . | . . . . . Robots Rewired . | . . . . . Allies Hacked . | . . . . . Hacks Repelled . | . . . . . Allies | -11 -10 -10 -9 -9 -------- Run | Jun Mat Min Mat Min Total Allies 1 | . . 1 . . Largest Group 1 | . . 1 1 . Highest-Rated Group 31 | . . 31 31 . Highest-Rated Ally 31 | . . 31 31 . Total Orders . | . . . . . Ally Attacks 7 | . . . 7 . Total Damage 85 | . . . 85 . Kills 3 | . . . 3 . Allies Corrupted . | . . . . . Allies Melted . | . . . . . Intel | -11 -10 -10 -9 -9 ------- Run | Jun Mat Min Mat Min Robot Analysis Total . | . . . . . Derelict Logs Recovered . | . . . . . Drone Launches . | . . . . . Drone Recoveries . | . . . . . Exploration | -11 -10 -10 -9 -9 ------------- Run | Jun Mat Min Mat Min Turns Passed 1264 | 86 595 151 226 206 Spaces Moved 725 | 77 347 120 118 63 Core 18 | 18 . . . . Treads . | . . . . . Legs 370 | . 69 120 118 63 Wheels 204 | 59 145 . . . Hover 118 | . 118 . . . Flight 15 | . 15 . . . Fastest Speed 50 | 50 80 120 120 190 Average Speed 128 | 72 120 120 151 213 Slowest Speed 330 | 80 205 120 190 330 Overloaded Moves . | . . . . . Propulsion Burnouts . | . . . . . Robots Hopped . | . . . . . Cave-ins Triggered . | . . . . . Exploration Rate (%) 26 | 7 54 37 16 16 Regions Visited 4 Branch Regions 2 Pre-discovered Areas . | . . . . . Known Exits Taken . | . . . . . Unknown Exits Taken 4 | 1 1 1 1 . Scrap Searched 1 | . . . . 1 Spaces Dug . | . . . . . Terrain Destroyed 49 | . 42 . 7 . Melee . | . . . . . Projectile . | . . . . . AOE 49 | . 42 . 7 . Terrain Rammed . | . . . . . Walls Destroyed . | . . . . . Machines Disabled . | . . . . . Actions | -11 -10 -10 -9 -9 --------- Run | Jun Mat Min Mat Min Total 933 | 102 456 126 150 99 Wait 43 | 5 28 5 2 3 Move 721 | 76 346 119 117 63 Hop . | . . . . . Pick Up 37 | 10 13 1 9 4 Fast Attach 1 | . 1 . . . Attach 26 | 5 9 . 4 8 Detach 4 | . 2 . 1 1 Swap 12 | 3 3 1 5 . Drop 13 | 1 8 . 4 . Fire 76 | 2 46 . 8 20 Melee . | . . . . . Ram . | . . . . . Kick . | . . . . . Crush . | . . . . . Escape Stasis . | . . . . . Rewire . | . . . . . Trap . | . . . . . Miscellaneous . | . . . . . Route ------- -11/Junkyard -10/Materials (discovered 2 exits: *Mat / [*Min]) -10/Mines -9/Materials -9/Mines History --------- Turn | Location | Event 2 | -11/Junkyard | Met Revision 17 72 | -11/Junkyard | Discovered new exit (range 8) 87 | -11/Junkyard | Entered Materials 313 | -10/Materials | Build established: Mutant 434 | -10/Materials | Discovered new exit (range 16) 665 | -10/Materials | Discovered new exit (range 14) 682 | -10/Materials | Entered Mines 683 | -10/Mines | Met a Derelict bent on vengeance 685 | -10/Mines | Received a Mining Laser from a helpful Derelict 821 | -10/Mines | Discovered new exit (range 3) 833 | -10/Mines | Entered Materials 833 | -9/Materials | Accompanied by 1 ally 833 | -9/Materials | Evolved 2 slots: Power x1, Utility x1 1042 | -9/Materials | Discovered new exit (range 7) 1059 | -9/Materials | Entered Mines 1072 | -9/Mines | System corruption reached 10% 1110 | -9/Mines | Core integrity fell below 50% 1146 | -9/Mines | Lost 7 parts (1p1n1u4w) 1254 | -9/Mines | Core integrity fell below 20% 1265 | -9/Mines | Destroyed by YI-UF0 with YI-UF0's Doublenader Last Messages --------------- Found Unknown Protection. Found 33 Matter. Acquired 33 matter. System corrupted: FCS attempts to trigger Sml. Laser. System corrupted: Sml. Laser misfires. System corrupted: Matter fused (-7). Acquired 41 matter. The unstable cave ceiling collapses. YI-UF0: "WHAAM!" The unstable cave ceiling collapses. YI-UF0 mumbles something. The unstable cave ceiling collapses. YI-UF0 mumbles something. Imp. Aluminum Leg destroyed. System corrupted: Component data lost. The unstable cave ceiling collapses. Laser Drill disabled. The unstable cave ceiling collapses. YI-UF0 mumbles something. [Achievement: First Step to Greatness] Map ----- +----------------------------------------------------+ | ?????????????????????????????????????????????????? | | ?????????????????????????????????????????????????? | | ?????????????????????????????????????????????????? | | ?????????????????????????????????????????????????? | | ?????????????????????????????????????????????????? | | ?????????????? #???????????????????????????????? | | ?????????????? #??????????????????????????????? | | ?????????????? ??????????????????????????????? | | ?????????????? ??????????????????????????????? | | ??????????????# ??????????????????????????????? | | ??????????????# ???????????????????????????????? | | ?????????????## ???????????????????????????????? | | ????????????## ???????????????????????????????? | | ???????????## ???????????????????????????????? | | ???????????? #???????????????????????????????? | | ????????????? #???????????????????????????????? | | ?????????????? #???????????????????????????????? | | ??????????????# #???????????????????????????????? | | ??????????????# #???????????????????????????????? | | ??????????????# ########????????????????????????? | | ??????????????# #???????????? ?????????? | | ??????????????# ####### ####???????? ?????????? | | ??????????????# #?????# #???????? *% ????????? | | ??????????????# #?????### #??????? ! ????????? | | ??????????????# #???????# #?????? ????????? | | ??????????##### #???#####@ ###??? ??????????? | | ??????????# ##### # # ## #???????????? | | ??????????#!##### #???????????? | | ??????##### ##?# "" ##???????????? | | ??????# #?# " # #????????????? | | ??# ### #### # g ##????????????? | | ??# ## # #?????????????? | | ??##### ## ## #???????????????? | | ??????########??### # #???????????????? | | ??????????????????##### #???????????????? | | ??????????????????????# ##???????????????? | | ??????????????????????# = #????????????????? | | ??????????????????????## ????????????????? | | ???????????????????????# # ???????????????? | | ???????????????????????# ??????????????? | | ???????????????????????# ## #?????????????? | | ???????????????????????## # ? ##?????????????? | | ???????????????????????? ? ? ##??????????????? | | ????????????????????????# ? ? ##???????????????? | | ????????????????????????##?#? ##????????????????? | | ????????????????????????????? ##?????????????????? | | ?????????????????????????????#???????????????????? | | ?????????????????????????????????????????????????? | | ?????????????????????????????????????????????????? | | ?????????????????????????????????????????????????? | +----------------------------------------------------+ Best States ------------- Heat Dissipation 35 Energy Generation 15 Energy Capacity 500 Matter Stores 400 Matter Capacity 400 Sight Range 16 Terrain Scan Density 10 ECM Strength 1 Evasion (%) 55 Targeting Accuracy 5 Item Schematics ----------------- None Robot Schematics ------------------ None Fabricated ------------ Nothing Alien Tech Used ----------------- None Achievements -------------- Crack Shot First Step to Greatness One Hack Too Far Risk Taker Shopping List Storm Trooper System Compromised Uninvited Guest Challenges ------------ None Game ------ Seed NetworkShadingCompressor Manual? 0 Play Time 00:47:50 Cumulative 1.5 hours Start 2023.11.22 @ 23:37:43 End 2023.11.26 @ 20:16:04 Sessions 3 Manual Loads 0 Difficulty Rogue Special Mode None Game No. 1 Rogue 1 Adventurer 0 Explorer 0 Win Type - Total 0 Types 0/0/0/0/0/0/0/0/0 Lore% 0 Gallery% 2 Achievement% 3 Wizard Run 0 Options --------- ASCII 0 Keyboard 0 Movement Mouse Keybinds 0 Fullscreen 1 Font 18/X11 Map View 76x50 Tactical HUD 0 Map Filters NONE Filters NONE Steam 1 RUN: ca402633-6705-4c3d-aea9-2a7f9cf2a97f